{"text_format":"1","workbook":"xlsx","n_sheets":3,"sheets":["סך שעות","עבודות מרובות","תשלומים"],"not_rendered":{"charts":0,"images":0,"macros":1,"external_links":0,"defined_names":6,"comments":0,"pivot_tables":0},"unopened":[],"bounds":{"document_bytes":16777216,"sheet_cells":100000,"rows_first":2000,"rows_last":500,"rows_between":2000,"halvings":0,"cell_chars":16384,"cell_head_chars":4096},"cells_cut":0,"cells_raw":0,"read":"whole","date_system":"1900"}

{"sheet":"סך שעות","index":0,"n_rows":83,"n_cols":8,"rows_kept":83,"cut":false,"hidden":false,"merged":[[81,0,81,1],[82,0,82,1],[0,0,1,2],[1,4,1,5],[1,7,1,8],[2,0,2,2],[2,4,3,5],[2,6,3,6],[2,7,3,8]]}
["חישוב שעות עבודה"]
[null,null,null,null,"סה\"כ שעות",null,"שכר לשעה","לתשלום"]
["רשום את סך השעות שעבדת",null,null,null,{"$f":"SUM(טבלה13[סך השעות])","v":0},null,40,{"$f":"G3*E3*24","v":0}]
["סך השעות","הערות","תאריך"]
[]
[]
[]
[]
[]
[]
[]
[]
[]
[]
[]
[]
[]
[]
[]
[]
[]
[]
[]
[]
[]
[]
[]
[]
[]
[]
[]
[]
[]
[]
[]
[]
[]
[]
[]
[]
[]
[]
[]
[]
[]
[]
[]
[]
[]
[]
[]
[]
[]
[]
[]
[]
[]
[]
[]
[]
[]
[]
[]
[]
[]
[]
[]
[]
[]
[]
[]
[]
[]
[]
[]
[]
[]
[]
[]
[]
[]
["נוצר ע\"י שמואל"]
["abc0533118127@gmail.com"]

{"sheet":"עבודות מרובות","index":1,"n_rows":121,"n_cols":31,"rows_kept":121,"cut":false,"hidden":false,"merged":[[121,0,121,2],[5,9,6,9],[5,10,6,10],[10,7,10,11],[117,0,117,2],[118,0,118,2],[120,0,120,2],[5,2,6,2],[5,3,6,3],[5,4,6,4],[5,5,6,5],[5,7,6,7],[5,8,6,8]]}
[]
[]
[]
[null,null,null,null,null,null,null,null,null,null,null,null,null,null,null,null,null,null,null,null,null,null,null,null,null,null,null,null,null,null,"עבודה נבחרת"]
[null,null,"העבודה יומית שלי","שכר היום",null,null,null,"כל שעות העבודה","המשכורת שלי","יעד","יעד חודשי בש\"ח",null,null,null,null,null,null,null,null,null,null,null,null,null,null,null,null,null,null,null,1]
[null,null,{"$f":"SUMIFS(שעות_עבודה7[סה''''כ],שעות_עבודה7[תאריך],TODAY())","v":0},{"$f":"IFERROR(C6*24*AE9,\"\")","v":0},null,null,null,{"$f":"SUM(שעות_עבודה7[סה''''כ])","v":0},{"$f":"SUM(תעריפים_וסיכום8[לתשלום])","v":0},{"$f":"IFERROR(I6/K6,\"\")","v":0},1000,null,null,null,null,null,null,null,null,null,null,null,null,null,null,null,null,null,null,null,"שם עבודה נבחרת"]
[null,null,null,null,null,null,null,null,null,null,null,null,null,null,null,null,null,null,null,null,null,null,null,null,null,null,null,null,null,null,{"$f":"INDEX(תעריפים_וסיכום8[העבודות שלי],AE5)","v":"חומש - דוגמא"}]
[null,null,null,null,null,null,null,null,null,null,null,null,null,null,null,null,null,null,null,null,null,null,null,null,null,null,null,null,null,null,"שכר לעבודה נבחרת"]
[null,null,null,null,null,null,null,null,null,null,null,null,null,null,null,null,null,null,null,null,null,null,null,null,null,null,null,null,null,null,{"$f":"VLOOKUP(AE7,תעריפים_וסיכום8[],3)","v":40}]
["התחלה","סיום","סה''כ","העבודה שלי","תאריך","הערות"]
[null,null,{"$f":"IF(שעות_עבודה7[[#This Row],[סיום]]=\"\",\"\",שעות_עבודה7[[#This Row],[סיום]]-שעות_עבודה7[[#This Row],[התחלה]]+(שעות_עבודה7[[#This Row],[סיום]]<שעות_עבודה7[[#This Row],[התחלה]]))","v":""},null,null,null,null,"רשימת העבודות שלי - וסיכום שעות ותשלומים"]
[null,null,{"$f":"IF(שעות_עבודה7[[#This Row],[סיום]]=\"\",\"\",שעות_עבודה7[[#This Row],[סיום]]-שעות_עבודה7[[#This Row],[התחלה]]+(שעות_עבודה7[[#This Row],[סיום]]<שעות_עבודה7[[#This Row],[התחלה]]))","v":""},null,null,null,null,"העבודות שלי","סך שעות עבודה","שכר לשעה","לתשלום","הערות"]
[null,null,{"$f":"IF(שעות_עבודה7[[#This Row],[סיום]]=\"\",\"\",שעות_עבודה7[[#This Row],[סיום]]-שעות_עבודה7[[#This Row],[התחלה]]+(שעות_עבודה7[[#This Row],[סיום]]<שעות_עבודה7[[#This Row],[התחלה]]))","v":""},null,null,null,null,"חומש - דוגמא",{"$f":"IF(SUMIFS(שעות_עבודה7[סה''''כ],שעות_עבודה7[העבודה שלי],תעריפים_וסיכום8[[#This Row],[העבודות שלי]])<0.0001,\"\",SUMIFS(שעות_עבודה7[סה''''כ],שעות_עבודה7[העבודה שלי],תעריפים_וסיכום8[[#This Row],[העבודות שלי]]))","v":""},40,{"$f":"IFERROR(תעריפים_וסיכום8[[#This Row],[סך שעות עבודה]]*תעריפים_וסיכום8[[#This Row],[שכר לשעה]]*24,\"\")","v":""}]
[null,null,{"$f":"IF(שעות_עבודה7[[#This Row],[סיום]]=\"\",\"\",שעות_עבודה7[[#This Row],[סיום]]-שעות_עבודה7[[#This Row],[התחלה]]+(שעות_עבודה7[[#This Row],[סיום]]<שעות_עבודה7[[#This Row],[התחלה]]))","v":""},null,null,null,null,"משנה - דוגמא",{"$f":"IF(SUMIFS(שעות_עבודה7[סה''''כ],שעות_עבודה7[העבודה שלי],תעריפים_וסיכום8[[#This Row],[העבודות שלי]])<0.0001,\"\",SUMIFS(שעות_עבודה7[סה''''כ],שעות_עבודה7[העבודה שלי],תעריפים_וסיכום8[[#This Row],[העבודות שלי]]))","v":""},50,{"$f":"IFERROR(תעריפים_וסיכום8[[#This Row],[סך שעות עבודה]]*תעריפים_וסיכום8[[#This Row],[שכר לשעה]]*24,\"\")","v":""}]
[null,null,{"$f":"IF(שעות_עבודה7[[#This Row],[סיום]]=\"\",\"\",שעות_עבודה7[[#This Row],[סיום]]-שעות_עבודה7[[#This Row],[התחלה]]+(שעות_עבודה7[[#This Row],[סיום]]<שעות_עבודה7[[#This Row],[התחלה]]))","v":""},null,null,null,null,null,{"$f":"IF(SUMIFS(שעות_עבודה7[סה''''כ],שעות_עבודה7[העבודה שלי],תעריפים_וסיכום8[[#This Row],[העבודות שלי]])<0.0001,\"\",SUMIFS(שעות_עבודה7[סה''''כ],שעות_עבודה7[העבודה שלי],תעריפים_וסיכום8[[#This Row],[העבודות שלי]]))","v":""},null,{"$f":"IFERROR(תעריפים_וסיכום8[[#This Row],[סך שעות עבודה]]*תעריפים_וסיכום8[[#This Row],[שכר לשעה]]*24,\"\")","v":""}]
[null,null,{"$f":"IF(שעות_עבודה7[[#This Row],[סיום]]=\"\",\"\",שעות_עבודה7[[#This Row],[סיום]]-שעות_עבודה7[[#This Row],[התחלה]]+(שעות_עבודה7[[#This Row],[סיום]]<שעות_עבודה7[[#This Row],[התחלה]]))","v":""},null,null,null,null,null,{"$f":"IF(SUMIFS(שעות_עבודה7[סה''''כ],שעות_עבודה7[העבודה שלי],תעריפים_וסיכום8[[#This Row],[העבודות שלי]])<0.0001,\"\",SUMIFS(שעות_עבודה7[סה''''כ],שעות_עבודה7[העבודה שלי],תעריפים_וסיכום8[[#This Row],[העבודות שלי]]))","v":""},null,{"$f":"IFERROR(תעריפים_וסיכום8[[#This Row],[סך שעות עבודה]]*תעריפים_וסיכום8[[#This Row],[שכר לשעה]]*24,\"\")","v":""}]
[null,null,{"$f":"IF(שעות_עבודה7[[#This Row],[סיום]]=\"\",\"\",שעות_עבודה7[[#This Row],[סיום]]-שעות_עבודה7[[#This Row],[התחלה]]+(שעות_עבודה7[[#This Row],[סיום]]<שעות_עבודה7[[#This Row],[התחלה]]))","v":""},null,null,null,null,null,{"$f":"IF(SUMIFS(שעות_עבודה7[סה''''כ],שעות_עבודה7[העבודה שלי],תעריפים_וסיכום8[[#This Row],[העבודות שלי]])<0.0001,\"\",SUMIFS(שעות_עבודה7[סה''''כ],שעות_עבודה7[העבודה שלי],תעריפים_וסיכום8[[#This Row],[העבודות שלי]]))","v":""},null,{"$f":"IFERROR(תעריפים_וסיכום8[[#This Row],[סך שעות עבודה]]*תעריפים_וסיכום8[[#This Row],[שכר לשעה]]*24,\"\")","v":""}]
[null,null,{"$f":"IF(שעות_עבודה7[[#This Row],[סיום]]=\"\",\"\",שעות_עבודה7[[#This Row],[סיום]]-שעות_עבודה7[[#This Row],[התחלה]]+(שעות_עבודה7[[#This Row],[סיום]]<שעות_עבודה7[[#This Row],[התחלה]]))","v":""},null,null,null,null,null,{"$f":"IF(SUMIFS(שעות_עבודה7[סה''''כ],שעות_עבודה7[העבודה שלי],תעריפים_וסיכום8[[#This Row],[העבודות שלי]])<0.0001,\"\",SUMIFS(שעות_עבודה7[סה''''כ],שעות_עבודה7[העבודה שלי],תעריפים_וסיכום8[[#This Row],[העבודות שלי]]))","v":""},null,{"$f":"IFERROR(תעריפים_וסיכום8[[#This Row],[סך שעות עבודה]]*תעריפים_וסיכום8[[#This Row],[שכר לשעה]]*24,\"\")","v":""}]
[null,null,{"$f":"IF(שעות_עבודה7[[#This Row],[סיום]]=\"\",\"\",שעות_עבודה7[[#This Row],[סיום]]-שעות_עבודה7[[#This Row],[התחלה]]+(שעות_עבודה7[[#This Row],[סיום]]<שעות_עבודה7[[#This Row],[התחלה]]))","v":""},null,null,null,null,null,{"$f":"IF(SUMIFS(שעות_עבודה7[סה''''כ],שעות_עבודה7[העבודה שלי],תעריפים_וסיכום8[[#This Row],[העבודות שלי]])<0.0001,\"\",SUMIFS(שעות_עבודה7[סה''''כ],שעות_עבודה7[העבודה שלי],תעריפים_וסיכום8[[#This Row],[העבודות שלי]]))","v":""},null,{"$f":"IFERROR(תעריפים_וסיכום8[[#This Row],[סך שעות עבודה]]*תעריפים_וסיכום8[[#This Row],[שכר לשעה]]*24,\"\")","v":""}]
[null,null,{"$f":"IF(שעות_עבודה7[[#This Row],[סיום]]=\"\",\"\",שעות_עבודה7[[#This Row],[סיום]]-שעות_עבודה7[[#This Row],[התחלה]]+(שעות_עבודה7[[#This Row],[סיום]]<שעות_עבודה7[[#This Row],[התחלה]]))","v":""},null,null,null,null,null,{"$f":"IF(SUMIFS(שעות_עבודה7[סה''''כ],שעות_עבודה7[העבודה שלי],תעריפים_וסיכום8[[#This Row],[העבודות שלי]])<0.0001,\"\",SUMIFS(שעות_עבודה7[סה''''כ],שעות_עבודה7[העבודה שלי],תעריפים_וסיכום8[[#This Row],[העבודות שלי]]))","v":""},null,{"$f":"IFERROR(תעריפים_וסיכום8[[#This Row],[סך שעות עבודה]]*תעריפים_וסיכום8[[#This Row],[שכר לשעה]]*24,\"\")","v":""}]
[null,null,{"$f":"IF(שעות_עבודה7[[#This Row],[סיום]]=\"\",\"\",שעות_עבודה7[[#This Row],[סיום]]-שעות_עבודה7[[#This Row],[התחלה]]+(שעות_עבודה7[[#This Row],[סיום]]<שעות_עבודה7[[#This Row],[התחלה]]))","v":""}]
[null,null,{"$f":"IF(שעות_עבודה7[[#This Row],[סיום]]=\"\",\"\",שעות_עבודה7[[#This Row],[סיום]]-שעות_עבודה7[[#This Row],[התחלה]]+(שעות_עבודה7[[#This Row],[סיום]]<שעות_עבודה7[[#This Row],[התחלה]]))","v":""},null,null,null,null,"השכר היומי מחושב לפי תעריף \"העבודה שלי\" בפנאל הראשי"]
[null,null,{"$f":"IF(שעות_עבודה7[[#This Row],[סיום]]=\"\",\"\",שעות_עבודה7[[#This Row],[סיום]]-שעות_עבודה7[[#This Row],[התחלה]]+(שעות_עבודה7[[#This Row],[סיום]]<שעות_עבודה7[[#This Row],[התחלה]]))","v":""},null,null,null,null,"לחיצה נוספת על סיום מעדכנת את שעת הסיום של העבודה האחרונה"]
[null,null,{"$f":"IF(שעות_עבודה7[[#This Row],[סיום]]=\"\",\"\",שעות_עבודה7[[#This Row],[סיום]]-שעות_עבודה7[[#This Row],[התחלה]]+(שעות_עבודה7[[#This Row],[סיום]]<שעות_עבודה7[[#This Row],[התחלה]]))","v":""}]
[null,null,{"$f":"IF(שעות_עבודה7[[#This Row],[סיום]]=\"\",\"\",שעות_עבודה7[[#This Row],[סיום]]-שעות_עבודה7[[#This Row],[התחלה]]+(שעות_עבודה7[[#This Row],[סיום]]<שעות_עבודה7[[#This Row],[התחלה]]))","v":""}]
[null,null,{"$f":"IF(שעות_עבודה7[[#This Row],[סיום]]=\"\",\"\",שעות_עבודה7[[#This Row],[סיום]]-שעות_עבודה7[[#This Row],[התחלה]]+(שעות_עבודה7[[#This Row],[סיום]]<שעות_עבודה7[[#This Row],[התחלה]]))","v":""}]
[null,null,{"$f":"IF(שעות_עבודה7[[#This Row],[סיום]]=\"\",\"\",שעות_עבודה7[[#This Row],[סיום]]-שעות_עבודה7[[#This Row],[התחלה]]+(שעות_עבודה7[[#This Row],[סיום]]<שעות_עבודה7[[#This Row],[התחלה]]))","v":""}]
[null,null,{"$f":"IF(שעות_עבודה7[[#This Row],[סיום]]=\"\",\"\",שעות_עבודה7[[#This Row],[סיום]]-שעות_עבודה7[[#This Row],[התחלה]]+(שעות_עבודה7[[#This Row],[סיום]]<שעות_עבודה7[[#This Row],[התחלה]]))","v":""}]
[null,null,{"$f":"IF(שעות_עבודה7[[#This Row],[סיום]]=\"\",\"\",שעות_עבודה7[[#This Row],[סיום]]-שעות_עבודה7[[#This Row],[התחלה]]+(שעות_עבודה7[[#This Row],[סיום]]<שעות_עבודה7[[#This Row],[התחלה]]))","v":""}]
[null,null,{"$f":"IF(שעות_עבודה7[[#This Row],[סיום]]=\"\",\"\",שעות_עבודה7[[#This Row],[סיום]]-שעות_עבודה7[[#This Row],[התחלה]]+(שעות_עבודה7[[#This Row],[סיום]]<שעות_עבודה7[[#This Row],[התחלה]]))","v":""}]
[null,null,{"$f":"IF(שעות_עבודה7[[#This Row],[סיום]]=\"\",\"\",שעות_עבודה7[[#This Row],[סיום]]-שעות_עבודה7[[#This Row],[התחלה]]+(שעות_עבודה7[[#This Row],[סיום]]<שעות_עבודה7[[#This Row],[התחלה]]))","v":""}]
[null,null,{"$f":"IF(שעות_עבודה7[[#This Row],[סיום]]=\"\",\"\",שעות_עבודה7[[#This Row],[סיום]]-שעות_עבודה7[[#This Row],[התחלה]]+(שעות_עבודה7[[#This Row],[סיום]]<שעות_עבודה7[[#This Row],[התחלה]]))","v":""}]
[null,null,{"$f":"IF(שעות_עבודה7[[#This Row],[סיום]]=\"\",\"\",שעות_עבודה7[[#This Row],[סיום]]-שעות_עבודה7[[#This Row],[התחלה]]+(שעות_עבודה7[[#This Row],[סיום]]<שעות_עבודה7[[#This Row],[התחלה]]))","v":""}]
[null,null,{"$f":"IF(שעות_עבודה7[[#This Row],[סיום]]=\"\",\"\",שעות_עבודה7[[#This Row],[סיום]]-שעות_עבודה7[[#This Row],[התחלה]]+(שעות_עבודה7[[#This Row],[סיום]]<שעות_עבודה7[[#This Row],[התחלה]]))","v":""}]
[null,null,{"$f":"IF(שעות_עבודה7[[#This Row],[סיום]]=\"\",\"\",שעות_עבודה7[[#This Row],[סיום]]-שעות_עבודה7[[#This Row],[התחלה]]+(שעות_עבודה7[[#This Row],[סיום]]<שעות_עבודה7[[#This Row],[התחלה]]))","v":""}]
[null,null,{"$f":"IF(שעות_עבודה7[[#This Row],[סיום]]=\"\",\"\",שעות_עבודה7[[#This Row],[סיום]]-שעות_עבודה7[[#This Row],[התחלה]]+(שעות_עבודה7[[#This Row],[סיום]]<שעות_עבודה7[[#This Row],[התחלה]]))","v":""}]
[null,null,{"$f":"IF(שעות_עבודה7[[#This Row],[סיום]]=\"\",\"\",שעות_עבודה7[[#This Row],[סיום]]-שעות_עבודה7[[#This Row],[התחלה]]+(שעות_עבודה7[[#This Row],[סיום]]<שעות_עבודה7[[#This Row],[התחלה]]))","v":""}]
[null,null,{"$f":"IF(שעות_עבודה7[[#This Row],[סיום]]=\"\",\"\",שעות_עבודה7[[#This Row],[סיום]]-שעות_עבודה7[[#This Row],[התחלה]]+(שעות_עבודה7[[#This Row],[סיום]]<שעות_עבודה7[[#This Row],[התחלה]]))","v":""}]
[null,null,{"$f":"IF(שעות_עבודה7[[#This Row],[סיום]]=\"\",\"\",שעות_עבודה7[[#This Row],[סיום]]-שעות_עבודה7[[#This Row],[התחלה]]+(שעות_עבודה7[[#This Row],[סיום]]<שעות_עבודה7[[#This Row],[התחלה]]))","v":""}]
[null,null,{"$f":"IF(שעות_עבודה7[[#This Row],[סיום]]=\"\",\"\",שעות_עבודה7[[#This Row],[סיום]]-שעות_עבודה7[[#This Row],[התחלה]]+(שעות_עבודה7[[#This Row],[סיום]]<שעות_עבודה7[[#This Row],[התחלה]]))","v":""}]
[null,null,{"$f":"IF(שעות_עבודה7[[#This Row],[סיום]]=\"\",\"\",שעות_עבודה7[[#This Row],[סיום]]-שעות_עבודה7[[#This Row],[התחלה]]+(שעות_עבודה7[[#This Row],[סיום]]<שעות_עבודה7[[#This Row],[התחלה]]))","v":""}]
[null,null,{"$f":"IF(שעות_עבודה7[[#This Row],[סיום]]=\"\",\"\",שעות_עבודה7[[#This Row],[סיום]]-שעות_עבודה7[[#This Row],[התחלה]]+(שעות_עבודה7[[#This Row],[סיום]]<שעות_עבודה7[[#This Row],[התחלה]]))","v":""}]
[null,null,{"$f":"IF(שעות_עבודה7[[#This Row],[סיום]]=\"\",\"\",שעות_עבודה7[[#This Row],[סיום]]-שעות_עבודה7[[#This Row],[התחלה]]+(שעות_עבודה7[[#This Row],[סיום]]<שעות_עבודה7[[#This Row],[התחלה]]))","v":""}]
[null,null,{"$f":"IF(שעות_עבודה7[[#This Row],[סיום]]=\"\",\"\",שעות_עבודה7[[#This Row],[סיום]]-שעות_עבודה7[[#This Row],[התחלה]]+(שעות_עבודה7[[#This Row],[סיום]]<שעות_עבודה7[[#This Row],[התחלה]]))","v":""}]
[null,null,{"$f":"IF(שעות_עבודה7[[#This Row],[סיום]]=\"\",\"\",שעות_עבודה7[[#This Row],[סיום]]-שעות_עבודה7[[#This Row],[התחלה]]+(שעות_עבודה7[[#This Row],[סיום]]<שעות_עבודה7[[#This Row],[התחלה]]))","v":""}]
[null,null,{"$f":"IF(שעות_עבודה7[[#This Row],[סיום]]=\"\",\"\",שעות_עבודה7[[#This Row],[סיום]]-שעות_עבודה7[[#This Row],[התחלה]]+(שעות_עבודה7[[#This Row],[סיום]]<שעות_עבודה7[[#This Row],[התחלה]]))","v":""}]
[null,null,{"$f":"IF(שעות_עבודה7[[#This Row],[סיום]]=\"\",\"\",שעות_עבודה7[[#This Row],[סיום]]-שעות_עבודה7[[#This Row],[התחלה]]+(שעות_עבודה7[[#This Row],[סיום]]<שעות_עבודה7[[#This Row],[התחלה]]))","v":""}]
[null,null,{"$f":"IF(שעות_עבודה7[[#This Row],[סיום]]=\"\",\"\",שעות_עבודה7[[#This Row],[סיום]]-שעות_עבודה7[[#This Row],[התחלה]]+(שעות_עבודה7[[#This Row],[סיום]]<שעות_עבודה7[[#This Row],[התחלה]]))","v":""}]
[null,null,{"$f":"IF(שעות_עבודה7[[#This Row],[סיום]]=\"\",\"\",שעות_עבודה7[[#This Row],[סיום]]-שעות_עבודה7[[#This Row],[התחלה]]+(שעות_עבודה7[[#This Row],[סיום]]<שעות_עבודה7[[#This Row],[התחלה]]))","v":""}]
[null,null,{"$f":"IF(שעות_עבודה7[[#This Row],[סיום]]=\"\",\"\",שעות_עבודה7[[#This Row],[סיום]]-שעות_עבודה7[[#This Row],[התחלה]]+(שעות_עבודה7[[#This Row],[סיום]]<שעות_עבודה7[[#This Row],[התחלה]]))","v":""}]
[null,null,{"$f":"IF(שעות_עבודה7[[#This Row],[סיום]]=\"\",\"\",שעות_עבודה7[[#This Row],[סיום]]-שעות_עבודה7[[#This Row],[התחלה]]+(שעות_עבודה7[[#This Row],[סיום]]<שעות_עבודה7[[#This Row],[התחלה]]))","v":""}]
[null,null,{"$f":"IF(שעות_עבודה7[[#This Row],[סיום]]=\"\",\"\",שעות_עבודה7[[#This Row],[סיום]]-שעות_עבודה7[[#This Row],[התחלה]]+(שעות_עבודה7[[#This Row],[סיום]]<שעות_עבודה7[[#This Row],[התחלה]]))","v":""}]
[null,null,{"$f":"IF(שעות_עבודה7[[#This Row],[סיום]]=\"\",\"\",שעות_עבודה7[[#This Row],[סיום]]-שעות_עבודה7[[#This Row],[התחלה]]+(שעות_עבודה7[[#This Row],[סיום]]<שעות_עבודה7[[#This Row],[התחלה]]))","v":""}]
[null,null,{"$f":"IF(שעות_עבודה7[[#This Row],[סיום]]=\"\",\"\",שעות_עבודה7[[#This Row],[סיום]]-שעות_עבודה7[[#This Row],[התחלה]]+(שעות_עבודה7[[#This Row],[סיום]]<שעות_עבודה7[[#This Row],[התחלה]]))","v":""}]
[null,null,{"$f":"IF(שעות_עבודה7[[#This Row],[סיום]]=\"\",\"\",שעות_עבודה7[[#This Row],[סיום]]-שעות_עבודה7[[#This Row],[התחלה]]+(שעות_עבודה7[[#This Row],[סיום]]<שעות_עבודה7[[#This Row],[התחלה]]))","v":""}]
[null,null,{"$f":"IF(שעות_עבודה7[[#This Row],[סיום]]=\"\",\"\",שעות_עבודה7[[#This Row],[סיום]]-שעות_עבודה7[[#This Row],[התחלה]]+(שעות_עבודה7[[#This Row],[סיום]]<שעות_עבודה7[[#This Row],[התחלה]]))","v":""}]
[null,null,{"$f":"IF(שעות_עבודה7[[#This Row],[סיום]]=\"\",\"\",שעות_עבודה7[[#This Row],[סיום]]-שעות_עבודה7[[#This Row],[התחלה]]+(שעות_עבודה7[[#This Row],[סיום]]<שעות_עבודה7[[#This Row],[התחלה]]))","v":""}]
[null,null,{"$f":"IF(שעות_עבודה7[[#This Row],[סיום]]=\"\",\"\",שעות_עבודה7[[#This Row],[סיום]]-שעות_עבודה7[[#This Row],[התחלה]]+(שעות_עבודה7[[#This Row],[סיום]]<שעות_עבודה7[[#This Row],[התחלה]]))","v":""}]
[null,null,{"$f":"IF(שעות_עבודה7[[#This Row],[סיום]]=\"\",\"\",שעות_עבודה7[[#This Row],[סיום]]-שעות_עבודה7[[#This Row],[התחלה]]+(שעות_עבודה7[[#This Row],[סיום]]<שעות_עבודה7[[#This Row],[התחלה]]))","v":""}]
[null,null,{"$f":"IF(שעות_עבודה7[[#This Row],[סיום]]=\"\",\"\",שעות_עבודה7[[#This Row],[סיום]]-שעות_עבודה7[[#This Row],[התחלה]]+(שעות_עבודה7[[#This Row],[סיום]]<שעות_עבודה7[[#This Row],[התחלה]]))","v":""}]
[null,null,{"$f":"IF(שעות_עבודה7[[#This Row],[סיום]]=\"\",\"\",שעות_עבודה7[[#This Row],[סיום]]-שעות_עבודה7[[#This Row],[התחלה]]+(שעות_עבודה7[[#This Row],[סיום]]<שעות_עבודה7[[#This Row],[התחלה]]))","v":""}]
[null,null,{"$f":"IF(שעות_עבודה7[[#This Row],[סיום]]=\"\",\"\",שעות_עבודה7[[#This Row],[סיום]]-שעות_עבודה7[[#This Row],[התחלה]]+(שעות_עבודה7[[#This Row],[סיום]]<שעות_עבודה7[[#This Row],[התחלה]]))","v":""}]
[null,null,{"$f":"IF(שעות_עבודה7[[#This Row],[סיום]]=\"\",\"\",שעות_עבודה7[[#This Row],[סיום]]-שעות_עבודה7[[#This Row],[התחלה]]+(שעות_עבודה7[[#This Row],[סיום]]<שעות_עבודה7[[#This Row],[התחלה]]))","v":""}]
[null,null,{"$f":"IF(שעות_עבודה7[[#This Row],[סיום]]=\"\",\"\",שעות_עבודה7[[#This Row],[סיום]]-שעות_עבודה7[[#This Row],[התחלה]]+(שעות_עבודה7[[#This Row],[סיום]]<שעות_עבודה7[[#This Row],[התחלה]]))","v":""}]
[null,null,{"$f":"IF(שעות_עבודה7[[#This Row],[סיום]]=\"\",\"\",שעות_עבודה7[[#This Row],[סיום]]-שעות_עבודה7[[#This Row],[התחלה]]+(שעות_עבודה7[[#This Row],[סיום]]<שעות_עבודה7[[#This Row],[התחלה]]))","v":""}]
[null,null,{"$f":"IF(שעות_עבודה7[[#This Row],[סיום]]=\"\",\"\",שעות_עבודה7[[#This Row],[סיום]]-שעות_עבודה7[[#This Row],[התחלה]]+(שעות_עבודה7[[#This Row],[סיום]]<שעות_עבודה7[[#This Row],[התחלה]]))","v":""}]
[null,null,{"$f":"IF(שעות_עבודה7[[#This Row],[סיום]]=\"\",\"\",שעות_עבודה7[[#This Row],[סיום]]-שעות_עבודה7[[#This Row],[התחלה]]+(שעות_עבודה7[[#This Row],[סיום]]<שעות_עבודה7[[#This Row],[התחלה]]))","v":""}]
[null,null,{"$f":"IF(שעות_עבודה7[[#This Row],[סיום]]=\"\",\"\",שעות_עבודה7[[#This Row],[סיום]]-שעות_עבודה7[[#This Row],[התחלה]]+(שעות_עבודה7[[#This Row],[סיום]]<שעות_עבודה7[[#This Row],[התחלה]]))","v":""}]
[null,null,{"$f":"IF(שעות_עבודה7[[#This Row],[סיום]]=\"\",\"\",שעות_עבודה7[[#This Row],[סיום]]-שעות_עבודה7[[#This Row],[התחלה]]+(שעות_עבודה7[[#This Row],[סיום]]<שעות_עבודה7[[#This Row],[התחלה]]))","v":""}]
[null,null,{"$f":"IF(שעות_עבודה7[[#This Row],[סיום]]=\"\",\"\",שעות_עבודה7[[#This Row],[סיום]]-שעות_עבודה7[[#This Row],[התחלה]]+(שעות_עבודה7[[#This Row],[סיום]]<שעות_עבודה7[[#This Row],[התחלה]]))","v":""}]
[null,null,{"$f":"IF(שעות_עבודה7[[#This Row],[סיום]]=\"\",\"\",שעות_עבודה7[[#This Row],[סיום]]-שעות_עבודה7[[#This Row],[התחלה]]+(שעות_עבודה7[[#This Row],[סיום]]<שעות_עבודה7[[#This Row],[התחלה]]))","v":""}]
[null,null,{"$f":"IF(שעות_עבודה7[[#This Row],[סיום]]=\"\",\"\",שעות_עבודה7[[#This Row],[סיום]]-שעות_עבודה7[[#This Row],[התחלה]]+(שעות_עבודה7[[#This Row],[סיום]]<שעות_עבודה7[[#This Row],[התחלה]]))","v":""}]
[null,null,{"$f":"IF(שעות_עבודה7[[#This Row],[סיום]]=\"\",\"\",שעות_עבודה7[[#This Row],[סיום]]-שעות_עבודה7[[#This Row],[התחלה]]+(שעות_עבודה7[[#This Row],[סיום]]<שעות_עבודה7[[#This Row],[התחלה]]))","v":""}]
[null,null,{"$f":"IF(שעות_עבודה7[[#This Row],[סיום]]=\"\",\"\",שעות_עבודה7[[#This Row],[סיום]]-שעות_עבודה7[[#This Row],[התחלה]]+(שעות_עבודה7[[#This Row],[סיום]]<שעות_עבודה7[[#This Row],[התחלה]]))","v":""}]
[null,null,{"$f":"IF(שעות_עבודה7[[#This Row],[סיום]]=\"\",\"\",שעות_עבודה7[[#This Row],[סיום]]-שעות_עבודה7[[#This Row],[התחלה]]+(שעות_עבודה7[[#This Row],[סיום]]<שעות_עבודה7[[#This Row],[התחלה]]))","v":""}]
[null,null,{"$f":"IF(שעות_עבודה7[[#This Row],[סיום]]=\"\",\"\",שעות_עבודה7[[#This Row],[סיום]]-שעות_עבודה7[[#This Row],[התחלה]]+(שעות_עבודה7[[#This Row],[סיום]]<שעות_עבודה7[[#This Row],[התחלה]]))","v":""}]
[null,null,{"$f":"IF(שעות_עבודה7[[#This Row],[סיום]]=\"\",\"\",שעות_עבודה7[[#This Row],[סיום]]-שעות_עבודה7[[#This Row],[התחלה]]+(שעות_עבודה7[[#This Row],[סיום]]<שעות_עבודה7[[#This Row],[התחלה]]))","v":""}]
[null,null,{"$f":"IF(שעות_עבודה7[[#This Row],[סיום]]=\"\",\"\",שעות_עבודה7[[#This Row],[סיום]]-שעות_עבודה7[[#This Row],[התחלה]]+(שעות_עבודה7[[#This Row],[סיום]]<שעות_עבודה7[[#This Row],[התחלה]]))","v":""}]
[null,null,{"$f":"IF(שעות_עבודה7[[#This Row],[סיום]]=\"\",\"\",שעות_עבודה7[[#This Row],[סיום]]-שעות_עבודה7[[#This Row],[התחלה]]+(שעות_עבודה7[[#This Row],[סיום]]<שעות_עבודה7[[#This Row],[התחלה]]))","v":""}]
[null,null,{"$f":"IF(שעות_עבודה7[[#This Row],[סיום]]=\"\",\"\",שעות_עבודה7[[#This Row],[סיום]]-שעות_עבודה7[[#This Row],[התחלה]]+(שעות_עבודה7[[#This Row],[סיום]]<שעות_עבודה7[[#This Row],[התחלה]]))","v":""}]
[null,null,{"$f":"IF(שעות_עבודה7[[#This Row],[סיום]]=\"\",\"\",שעות_עבודה7[[#This Row],[סיום]]-שעות_עבודה7[[#This Row],[התחלה]]+(שעות_עבודה7[[#This Row],[סיום]]<שעות_עבודה7[[#This Row],[התחלה]]))","v":""}]
[null,null,{"$f":"IF(שעות_עבודה7[[#This Row],[סיום]]=\"\",\"\",שעות_עבודה7[[#This Row],[סיום]]-שעות_עבודה7[[#This Row],[התחלה]]+(שעות_עבודה7[[#This Row],[סיום]]<שעות_עבודה7[[#This Row],[התחלה]]))","v":""}]
[null,null,{"$f":"IF(שעות_עבודה7[[#This Row],[סיום]]=\"\",\"\",שעות_עבודה7[[#This Row],[סיום]]-שעות_עבודה7[[#This Row],[התחלה]]+(שעות_עבודה7[[#This Row],[סיום]]<שעות_עבודה7[[#This Row],[התחלה]]))","v":""}]
[null,null,{"$f":"IF(שעות_עבודה7[[#This Row],[סיום]]=\"\",\"\",שעות_עבודה7[[#This Row],[סיום]]-שעות_עבודה7[[#This Row],[התחלה]]+(שעות_עבודה7[[#This Row],[סיום]]<שעות_עבודה7[[#This Row],[התחלה]]))","v":""}]
[null,null,{"$f":"IF(שעות_עבודה7[[#This Row],[סיום]]=\"\",\"\",שעות_עבודה7[[#This Row],[סיום]]-שעות_עבודה7[[#This Row],[התחלה]]+(שעות_עבודה7[[#This Row],[סיום]]<שעות_עבודה7[[#This Row],[התחלה]]))","v":""}]
[null,null,{"$f":"IF(שעות_עבודה7[[#This Row],[סיום]]=\"\",\"\",שעות_עבודה7[[#This Row],[סיום]]-שעות_עבודה7[[#This Row],[התחלה]]+(שעות_עבודה7[[#This Row],[סיום]]<שעות_עבודה7[[#This Row],[התחלה]]))","v":""}]
[null,null,{"$f":"IF(שעות_עבודה7[[#This Row],[סיום]]=\"\",\"\",שעות_עבודה7[[#This Row],[סיום]]-שעות_עבודה7[[#This Row],[התחלה]]+(שעות_עבודה7[[#This Row],[סיום]]<שעות_עבודה7[[#This Row],[התחלה]]))","v":""}]
[null,null,{"$f":"IF(שעות_עבודה7[[#This Row],[סיום]]=\"\",\"\",שעות_עבודה7[[#This Row],[סיום]]-שעות_עבודה7[[#This Row],[התחלה]]+(שעות_עבודה7[[#This Row],[סיום]]<שעות_עבודה7[[#This Row],[התחלה]]))","v":""}]
[null,null,{"$f":"IF(שעות_עבודה7[[#This Row],[סיום]]=\"\",\"\",שעות_עבודה7[[#This Row],[סיום]]-שעות_עבודה7[[#This Row],[התחלה]]+(שעות_עבודה7[[#This Row],[סיום]]<שעות_עבודה7[[#This Row],[התחלה]]))","v":""}]
[null,null,{"$f":"IF(שעות_עבודה7[[#This Row],[סיום]]=\"\",\"\",שעות_עבודה7[[#This Row],[סיום]]-שעות_עבודה7[[#This Row],[התחלה]]+(שעות_עבודה7[[#This Row],[סיום]]<שעות_עבודה7[[#This Row],[התחלה]]))","v":""}]
[null,null,{"$f":"IF(שעות_עבודה7[[#This Row],[סיום]]=\"\",\"\",שעות_עבודה7[[#This Row],[סיום]]-שעות_עבודה7[[#This Row],[התחלה]]+(שעות_עבודה7[[#This Row],[סיום]]<שעות_עבודה7[[#This Row],[התחלה]]))","v":""}]
[null,null,{"$f":"IF(שעות_עבודה7[[#This Row],[סיום]]=\"\",\"\",שעות_עבודה7[[#This Row],[סיום]]-שעות_עבודה7[[#This Row],[התחלה]]+(שעות_עבודה7[[#This Row],[סיום]]<שעות_עבודה7[[#This Row],[התחלה]]))","v":""}]
[null,null,{"$f":"IF(שעות_עבודה7[[#This Row],[סיום]]=\"\",\"\",שעות_עבודה7[[#This Row],[סיום]]-שעות_עבודה7[[#This Row],[התחלה]]+(שעות_עבודה7[[#This Row],[סיום]]<שעות_עבודה7[[#This Row],[התחלה]]))","v":""}]
[null,null,{"$f":"IF(שעות_עבודה7[[#This Row],[סיום]]=\"\",\"\",שעות_עבודה7[[#This Row],[סיום]]-שעות_עבודה7[[#This Row],[התחלה]]+(שעות_עבודה7[[#This Row],[סיום]]<שעות_עבודה7[[#This Row],[התחלה]]))","v":""}]
[null,null,{"$f":"IF(שעות_עבודה7[[#This Row],[סיום]]=\"\",\"\",שעות_עבודה7[[#This Row],[סיום]]-שעות_עבודה7[[#This Row],[התחלה]]+(שעות_עבודה7[[#This Row],[סיום]]<שעות_עבודה7[[#This Row],[התחלה]]))","v":""}]
[null,null,{"$f":"IF(שעות_עבודה7[[#This Row],[סיום]]=\"\",\"\",שעות_עבודה7[[#This Row],[סיום]]-שעות_עבודה7[[#This Row],[התחלה]]+(שעות_עבודה7[[#This Row],[סיום]]<שעות_עבודה7[[#This Row],[התחלה]]))","v":""}]
[null,null,{"$f":"IF(שעות_עבודה7[[#This Row],[סיום]]=\"\",\"\",שעות_עבודה7[[#This Row],[סיום]]-שעות_עבודה7[[#This Row],[התחלה]]+(שעות_עבודה7[[#This Row],[סיום]]<שעות_עבודה7[[#This Row],[התחלה]]))","v":""}]
[null,null,{"$f":"IF(שעות_עבודה7[[#This Row],[סיום]]=\"\",\"\",שעות_עבודה7[[#This Row],[סיום]]-שעות_עבודה7[[#This Row],[התחלה]]+(שעות_עבודה7[[#This Row],[סיום]]<שעות_עבודה7[[#This Row],[התחלה]]))","v":""}]
[null,null,{"$f":"IF(שעות_עבודה7[[#This Row],[סיום]]=\"\",\"\",שעות_עבודה7[[#This Row],[סיום]]-שעות_עבודה7[[#This Row],[התחלה]]+(שעות_עבודה7[[#This Row],[סיום]]<שעות_עבודה7[[#This Row],[התחלה]]))","v":""}]
[null,null,{"$f":"IF(שעות_עבודה7[[#This Row],[סיום]]=\"\",\"\",שעות_עבודה7[[#This Row],[סיום]]-שעות_עבודה7[[#This Row],[התחלה]]+(שעות_עבודה7[[#This Row],[סיום]]<שעות_עבודה7[[#This Row],[התחלה]]))","v":""}]
[null,null,{"$f":"IF(שעות_עבודה7[[#This Row],[סיום]]=\"\",\"\",שעות_עבודה7[[#This Row],[סיום]]-שעות_עבודה7[[#This Row],[התחלה]]+(שעות_עבודה7[[#This Row],[סיום]]<שעות_עבודה7[[#This Row],[התחלה]]))","v":""}]
[null,null,{"$f":"IF(שעות_עבודה7[[#This Row],[סיום]]=\"\",\"\",שעות_עבודה7[[#This Row],[סיום]]-שעות_עבודה7[[#This Row],[התחלה]]+(שעות_עבודה7[[#This Row],[סיום]]<שעות_עבודה7[[#This Row],[התחלה]]))","v":""}]
[null,null,{"$f":"IF(שעות_עבודה7[[#This Row],[סיום]]=\"\",\"\",שעות_עבודה7[[#This Row],[סיום]]-שעות_עבודה7[[#This Row],[התחלה]]+(שעות_עבודה7[[#This Row],[סיום]]<שעות_עבודה7[[#This Row],[התחלה]]))","v":""}]
[null,null,{"$f":"IF(שעות_עבודה7[[#This Row],[סיום]]=\"\",\"\",שעות_עבודה7[[#This Row],[סיום]]-שעות_עבודה7[[#This Row],[התחלה]]+(שעות_עבודה7[[#This Row],[סיום]]<שעות_עבודה7[[#This Row],[התחלה]]))","v":""}]
[null,null,{"$f":"IF(שעות_עבודה7[[#This Row],[סיום]]=\"\",\"\",שעות_עבודה7[[#This Row],[סיום]]-שעות_עבודה7[[#This Row],[התחלה]]+(שעות_עבודה7[[#This Row],[סיום]]<שעות_עבודה7[[#This Row],[התחלה]]))","v":""}]
[null,null,{"$f":"IF(שעות_עבודה7[[#This Row],[סיום]]=\"\",\"\",שעות_עבודה7[[#This Row],[סיום]]-שעות_עבודה7[[#This Row],[התחלה]]+(שעות_עבודה7[[#This Row],[סיום]]<שעות_עבודה7[[#This Row],[התחלה]]))","v":""}]
[null,null,{"$f":"IF(שעות_עבודה7[[#This Row],[סיום]]=\"\",\"\",שעות_עבודה7[[#This Row],[סיום]]-שעות_עבודה7[[#This Row],[התחלה]]+(שעות_עבודה7[[#This Row],[סיום]]<שעות_עבודה7[[#This Row],[התחלה]]))","v":""}]
[null,null,{"$f":"IF(שעות_עבודה7[[#This Row],[סיום]]=\"\",\"\",שעות_עבודה7[[#This Row],[סיום]]-שעות_עבודה7[[#This Row],[התחלה]]+(שעות_עבודה7[[#This Row],[סיום]]<שעות_עבודה7[[#This Row],[התחלה]]))","v":""}]
[null,null,{"$f":"IF(שעות_עבודה7[[#This Row],[סיום]]=\"\",\"\",שעות_עבודה7[[#This Row],[סיום]]-שעות_עבודה7[[#This Row],[התחלה]]+(שעות_עבודה7[[#This Row],[סיום]]<שעות_עבודה7[[#This Row],[התחלה]]))","v":""}]
[null,null,{"$f":"IF(שעות_עבודה7[[#This Row],[סיום]]=\"\",\"\",שעות_עבודה7[[#This Row],[סיום]]-שעות_עבודה7[[#This Row],[התחלה]]+(שעות_עבודה7[[#This Row],[סיום]]<שעות_עבודה7[[#This Row],[התחלה]]))","v":""}]
[null,null,{"$f":"IF(שעות_עבודה7[[#This Row],[סיום]]=\"\",\"\",שעות_עבודה7[[#This Row],[סיום]]-שעות_עבודה7[[#This Row],[התחלה]]+(שעות_עבודה7[[#This Row],[סיום]]<שעות_עבודה7[[#This Row],[התחלה]]))","v":""}]
[null,null,{"$f":"IF(שעות_עבודה7[[#This Row],[סיום]]=\"\",\"\",שעות_עבודה7[[#This Row],[סיום]]-שעות_עבודה7[[#This Row],[התחלה]]+(שעות_עבודה7[[#This Row],[סיום]]<שעות_עבודה7[[#This Row],[התחלה]]))","v":""}]
[null,null,{"$f":"IF(שעות_עבודה7[[#This Row],[סיום]]=\"\",\"\",שעות_עבודה7[[#This Row],[סיום]]-שעות_עבודה7[[#This Row],[התחלה]]+(שעות_עבודה7[[#This Row],[סיום]]<שעות_עבודה7[[#This Row],[התחלה]]))","v":""}]
[null,null,{"$f":"IF(שעות_עבודה7[[#This Row],[סיום]]=\"\",\"\",שעות_עבודה7[[#This Row],[סיום]]-שעות_עבודה7[[#This Row],[התחלה]]+(שעות_עבודה7[[#This Row],[סיום]]<שעות_עבודה7[[#This Row],[התחלה]]))","v":""}]
[null,null,{"$f":"IF(שעות_עבודה7[[#This Row],[סיום]]=\"\",\"\",שעות_עבודה7[[#This Row],[סיום]]-שעות_עבודה7[[#This Row],[התחלה]]+(שעות_עבודה7[[#This Row],[סיום]]<שעות_עבודה7[[#This Row],[התחלה]]))","v":""}]
[null,null,{"$f":"IF(שעות_עבודה7[[#This Row],[סיום]]=\"\",\"\",שעות_עבודה7[[#This Row],[סיום]]-שעות_עבודה7[[#This Row],[התחלה]]+(שעות_עבודה7[[#This Row],[סיום]]<שעות_עבודה7[[#This Row],[התחלה]]))","v":""}]
[]
["נוצר ע\"י שמואל"]
["abc0533118127@gmail.com"]
[]
["עותק חופשי - סיסמא 1234"]

{"sheet":"תשלומים","index":2,"n_rows":3,"n_cols":5,"rows_kept":3,"cut":false,"hidden":false,"merged":[[0,0,1,3]]}
["רישום ומעקב תשלומים"]
[]
["בתאריך","התקבל סך","מאת","עבור עבודה","הערות"]